bitfinex/quotes_ETHUSD_20250806
["timestamp","ask_amount","ask_price","bid_price","bid_amount"]
[1754499900542,15.79683469,3652.6,3652.5,0.25583661]
[1754499900833,2.73792574,3652.4,3652.3,0.002]
[1754499901129,7.5294174,3652.4,3652.3,0.25822945]
[1754499901333,8.4584174,3652.4,3652.3,0.25822945]
[1754499901503,9.85502178,3652.4,3652.3,0.25822945]
[1754499901699,9.85502178,3652.4,3652.3,0.25829267]
[1754499902090,12.95502178,3652.4,3652.3,0.25829267]
[1754499902285,5.56369604,3652.4,3652.3,0.25829267]
[1754499902493,4.3198,3652.4,3652.3,0.25829267]
[1754499902938,4.183,3652.4,3652.3,0.25829267]
[1754499903318,6.92092574,3652.4,3652.3,0.25829267]
[1754499903506,4.6416,3652.4,3652.3,0.25829267]
[1754499903929,13.28662574,3652.4,3652.3,0.25829267]
[1754499904765,14.44867573,3652.4,3652.3,0.25829267]
[1754499904965,14.92036739,3652.4,3652.3,0.25829267]
[1754499905265,24.9278259,3652.4,3652.3,0.002]
[1754499906652,15.60924565,3652.4,3652.3,0.002]
[1754499906944,18.70924565,3652.4,3652.3,0.002]
[1754499907149,18.57036739,3652.4,3652.3,0.002]
[1754499907359,18.09867573,3652.4,3652.3,0.002]
[1754499907659,13.91567573,3652.4,3652.3,0.002]
[1754499907812,15.92802574,3652.4,3652.3,0.002]
[1754499908007,12.82802574,3652.4,3652.3,0.25853258]
[1754499908213,13.28662574,3652.4,3652.3,0.25853258]
[1754499908525,10.5487,3652.4,3652.3,0.25853258]
[1754499908720,12.82802574,3652.4,3652.3,0.25853258]
[1754499908922,13.28662574,3652.4,3652.3,0.25853258]
[1754499909709,15.37314614,3652.4,3652.3,0.25853258]
[1754499910014,16.3948378,3652.4,3652.3,0.002]
[1754499910957,15.92314614,3652.4,3652.3,0.002]
[1754499911648,15.92314614,3652.4,3652.3,0.25852347]
[1754499912244,15.92314614,3652.4,3652.3,0.002]
[1754499912445,19.4948378,3652.4,3652.3,0.002]
[1754499914154,19.02314614,3652.4,3652.3,0.002]
[1754499914650,18.55374614,3652.4,3652.3,0.002]
[1754499914842,18.69054614,3652.4,3652.3,0.002]
[1754499915455,19.16094614,3652.4,3652.3,0.002]
[1754499918285,18.69054614,3652.4,3652.3,0.002]
[1754499918919,19.16094614,3652.4,3652.3,0.002]
[1754499920383,18.69054614,3652.4,3652.3,0.002]
[1754499920755,19.16094614,3652.4,3652.3,0.002]
[1754499923490,18.69054614,3652.4,3652.3,0.002]
[1754499923794,19.16094614,3652.4,3652.3,0.002]
[1754499924289,19.6326378,3652.4,3652.3,0.002]
[1754499925208,22.6326378,3652.4,3652.3,0.002]
[1754499925363,6.28822562,3652.0,3651.9,0.002]
[1754499925693,3.28860057,3651.5,3651.3,0.002]
[1754499925866,11.08109223,3651.5,3651.4,0.25855928]
[1754499926193,16.49204651,3651.5,3651.4,0.002]
[1754499926770,25.9622375,3651.5,3651.4,0.002]
[1754499928786,16.49204651,3651.5,3651.4,1e-08]
[1754499930364,3.28875058,3651.3,3651.1,1e-08]
[1754499930567,22.52919298,3651.2,3651.1,1e-08]
[1754499930822,6.28905064,3650.9,3650.8,1e-08]
[1754499930961,14.0447423,3650.9,3650.8,1e-08]
[1754499931328,18.19870289,3650.9,3650.8,1e-08]
[1754499931898,18.19870289,3650.9,3650.4,1e-08]
[1754499931899,6.28935077,3650.5,3650.4,1e-08]
[1754499932096,11.08184243,3650.5,3650.4,1e-08]
[1754499932260,11.08184243,3650.5,3649.1,0.04]
[1754499932261,6.28957591,3650.2,3649.1,0.04]
[1754499932460,10.94526757,3650.2,3649.1,0.04]
[1754499932660,15.12486757,3650.2,3649.1,0.04]
[1754499933567,15.12486757,3650.2,3649.1,0.5026]
[1754499933772,15.12486757,3650.2,3649.3,0.4626]
[1754499935365,13.71137591,3650.2,3649.8,0.4626]
[1754499935588,13.71137591,3650.2,3649.8,0.9333]
[1754499935793,13.71137591,3650.2,3649.8,0.4626]
[1754499937601,14.19307591,3650.2,3649.1,0.9733]
[1754499937821,17.00359562,3650.2,3649.3,0.4626]
[1754499938601,16.06079562,3650.2,3649.7,0.4626]
[1754499939040,11.87579562,3650.2,3649.7,0.4626]
[1754499939303,16.54249562,3650.2,3649.7,0.4626]
[1754499939503,16.06079562,3650.2,3649.7,0.4626]
[1754499940302,15.58910396,3650.2,3649.9,0.4646]
[1754499940709,15.58910396,3650.2,3649.9,0.002]
[1754499940874,16.07080396,3650.2,3649.9,0.002]
[1754499941509,17.00359562,3650.2,3649.9,0.002]
[1754499941883,3.28972602,3650.0,3649.9,1e-08]
[1754499942078,25.17488711,3650.0,3649.9,1e-08]
[1754499942402,26.25448711,3650.0,3649.9,1e-08]
[1754499942603,35.26158711,3650.0,3649.9,1e-08]
[1754499943133,35.26158711,3650.0,3649.1,0.04]
[1754499943410,6.42712664,3649.2,3649.1,0.04]
[1754499943710,15.78625052,3649.2,3649.1,0.04]
[1754499943925,11.60125052,3649.2,3649.1,0.04]
[1754499944117,15.78625052,3649.2,3649.1,0.04]
[1754499944409,2.74100265,3648.3,3648.2,0.4626]
[1754499944625,2.74107779,3648.2,3648.1,0.04]
[1754499944773,2.74107779,3648.2,3648.1,0.5026]
[1754499947430,5.84107779,3648.2,3648.1,0.04]
[1754499947637,6.39107779,3648.2,3648.1,0.04]
[1754499948924,10.57707779,3648.2,3648.1,0.5026]
[1754499949092,10.57707779,3648.2,3648.1,0.04]
[1754499949894,11.97073583,3648.2,3648.1,0.04]
[1754499950432,12.45243583,3648.2,3648.1,0.04]
[1754499951408,7.78473583,3648.2,3648.1,0.04]
[1754499951731,10.57807779,3648.2,3648.1,0.5026]
[1754499952434,10.57807779,3648.2,3648.1,0.04]
[1754499952862,7.4238,3648.2,3648.1,0.9733]
[1754499953624,0.1368,3648.2,3648.1,0.9733]
[1754499953966,0.1368,3648.2,3648.1,4.08590625]
[1754499954467,2.74048473,3649.0,3648.2,2.74106898]
[1754499954468,4.187,3648.3,3648.2,2.74106898]
[1754499954757,4.187,3648.6,3648.5,2.74078944]
[1754499954958,0.1368,3649.1,3648.8,2.74057941]
[1754499955271,4.187,3649.0,3648.9,0.9333]
[1754499955739,4.187,3649.0,3648.9,0.4626]
[1754499956056,0.1368,3649.1,3648.9,0.4626]
[1754499956258,4.187,3649.0,3648.7,2.74069496]
[1754499956561,4.187,3649.0,3648.5,3.71575023]
[1754499956857,6.9274865,3649.0,3648.6,0.71794367]
[1754499957156,4.187,3649.0,3648.7,0.71803155]
[1754499957460,0.1368,3649.1,3648.8,0.9333]
[1754499957671,4.187,3649.0,3648.9,2.74055194]
[1754499957822,0.001,3649.9,3649.3,2.740199]
[1754499958165,0.001,3649.9,3649.7,2.73995122]
[1754499958331,0.001,3649.9,3649.8,2.87667615]
[1754499958657,0.001,3649.9,3649.0,0.27405519]
[1754499958658,0.001,3649.9,3649.5,0.4626]
[1754499958976,2.74008299,3649.6,3649.1,0.4626]
[1754499959160,2.74031433,3649.3,3649.2,0.25552829]
[1754499960262,2.74035229,3649.2,3648.7,0.4626]
[1754499960467,4.187,3649.3,3648.8,3.92960108]
[1754499960628,4.187,3649.3,3648.9,0.25572717]
[1754499960826,4.187,3649.3,3649.0,0.73172717]
[1754499961026,4.187,3649.3,3649.1,1.17482717]
[1754499961229,4.187,3649.3,3649.2,1.17482717]
[1754499961644,4.187,3649.3,3649.2,0.69882717]
[1754499961840,6.92720515,3649.4,3649.2,0.69882717]
[1754499962040,0.1368,3649.5,3649.3,0.9191]
[1754499962256,0.1368,3649.8,3649.4,3.91500067]
[1754499962441,0.001,3649.9,3649.5,1.58463209]
[1754499962642,0.001,3649.9,3649.5,0.9191]
[1754499962844,0.001,3649.9,3649.8,2.73987615]
[1754499963060,0.001,3649.9,3649.8,2.99562184]
[1754499963258,0.001,3649.9,3649.8,3.9421206]
[1754499963671,0.001,3649.9,3649.8,4.0789206]
[1754499964001,0.04,3650.9,3650.8,2.73912567]
[1754499964171,0.04,3650.9,3650.8,0.25536334]
[1754499964336,0.04,3650.9,3650.8,0.1368]
[1754499964674,0.04,3650.9,3650.5,0.1368]
[1754499964869,2.77907459,3650.9,3650.6,0.25536385]
[1754499965033,2.77907459,3650.9,3650.7,0.25536385]
[1754499965240,0.04,3650.9,3650.5,0.1368]
[1754499965573,2.77909559,3650.9,3650.6,0.25519223]
[1754499965733,2.77909559,3650.9,3650.5,0.1368]
[1754499965935,2.77909559,3650.9,3650.6,0.25519565]
[1754499966171,2.77909559,3650.9,3650.5,0.1368]
[1754499966549,2.73913215,3650.8,3650.5,0.1368]
[1754499967466,2.73925112,3650.7,3650.5,0.1368]
[1754499967663,2.73927573,3650.6,3650.3,0.4431]
[1754499967861,3.25706562,3650.9,3650.0,2.73972187]
[1754499967862,0.1368,3650.8,3650.2,0.1368]
[1754499968174,2.73924885,3650.7,3650.2,0.1368]
[1754499968473,2.73924885,3650.7,3650.3,0.69793747]
[1754499968669,2.73924885,3650.7,3650.3,0.4431]
[1754499969182,2.73925788,3650.7,3650.2,0.1368]
[1754499969336,2.73925788,3650.7,3650.2,0.5799]
[1754499969539,2.73925788,3650.7,3650.3,0.4431]
[1754499969971,2.73944243,3650.4,3650.2,0.1368]
[1754499970140,0.478,3650.7,3650.2,0.1368]
[1754499970472,2.73952611,3650.3,3649.8,0.4431]
[1754499970776,3.21752611,3650.3,3650.0,0.1368]
[1754499970942,0.1368,3650.3,3649.8,2.8766135]
[1754499971140,2.87630149,3650.3,3649.9,0.69778949]
[1754499971348,2.87630149,3650.3,3649.9,0.4431]
[1754499971546,2.73957691,3650.2,3649.8,0.1368]
[1754499971771,2.73957691,3650.2,3649.9,0.25463211]
[1754499971949,0.1368,3650.3,3649.8,0.1368]
[1754499972155,0.1368,3650.3,3649.9,0.4431]
[1754499972377,4.185,3650.7,3650.0,0.9191]
[1754499972558,2.73939107,3650.5,3650.2,0.1368]
[1754499972739,2.73939897,3650.5,3650.2,0.1368]
[1754499973085,2.73931585,3650.6,3650.2,0.1368]
[1754499973448,2.73935652,3650.5,3650.2,0.1368]
[1754499973951,2.73928302,3650.6,3650.2,0.5799]
[1754499975291,4.7443,3650.7,3650.2,0.5799]
[1754499975292,7.48352737,3650.7,3650.2,0.5799]
[1754499975458,7.4835458,3650.7,3650.2,0.1368]
[1754499975638,2.73929305,3650.6,3650.3,0.4431]
[1754499975842,2.73935219,3650.5,3650.2,0.1368]
[1754499976664,2.73931594,3650.6,3650.2,0.1368]
[1754499976974,6.92427749,3650.6,3650.2,0.5799]
[1754499977137,4.185,3650.6,3650.2,0.5799]
[1754499977343,6.92427796,3650.6,3650.2,0.5799]
[1754499977582,2.73936467,3650.5,3650.2,0.1368]
[1754499977784,3.21736467,3650.5,3650.2,0.1368]
[1754499977978,3.21743528,3650.4,3650.2,0.1368]
[1754499978399,3.21750086,3650.3,3650.2,0.1368]
[1754499978564,2.73966314,3650.1,3649.3,3.65933554]
[1754499978751,3.21766314,3650.1,3649.7,0.1368]
[1754499978944,4.7957,3650.3,3649.7,2.87674119]
[1754499979148,4.3218,3650.3,3649.8,0.25489646]
[1754499979360,0.1368,3650.3,3649.8,2.99472439]
[1754499979556,0.1368,3650.3,3649.9,0.9191]
[1754499980079,4.185,3650.5,3650.0,0.9191]
[1754499980280,4.185,3650.5,3650.1,3.18270519]
[1754499980490,7.4023989,3650.5,3650.0,0.1368]
[1754499980784,6.9243989,3650.5,3650.0,0.1368]
[1754499980981,4.185,3650.5,3650.1,2.73958325]
[1754499981147,4.185,3650.5,3650.2,0.4431]
[1754499981678,4.185,3650.5,3650.0,2.87649663]
[1754499981867,0.478,3650.4,3650.0,0.1368]
[1754499982071,0.478,3650.3,3650.0,0.1368]
[1754499982271,3.21752827,3650.3,3650.0,0.1368]
[1754499982472,0.478,3650.2,3650.0,0.1368]
[1754499982988,7.40239245,3650.5,3650.0,0.1368]
[1754499983184,2.73944408,3650.4,3650.1,0.25559105]
[1754499983389,3.21744408,3650.4,3650.0,0.1368]
[1754499983595,2.73944408,3650.4,3650.0,0.1368]
[1754499983764,0.478,3650.3,3650.0,0.1368]
[1754499984093,0.478,3650.2,3650.0,0.1368]
[1754499984290,0.478,3650.2,3650.1,0.2557868]
[1754499984481,4.47911191,3650.2,3650.0,0.1368]
[1754499984676,4.47911191,3650.2,3649.6,2.73995658]
[1754499984881,0.478,3650.1,3649.8,0.1368]
[1754499985082,0.478,3650.1,3649.9,0.25579638]
[1754499985283,0.478,3650.1,3649.8,0.1368]
[1754499985284,2.73965096,3650.1,3650.0,0.25579638]
[1754499985681,2.73965096,3650.1,3649.0,2.7404329]
[1754499985682,0.47169166,3650.1,3649.0,2.7404329]
[1754499985855,0.1368,3649.8,3649.2,0.1368]
[1754499986056,0.478,3649.7,3649.3,2.99617657]
[1754499986257,0.478,3649.7,3649.4,0.25596854]
[1754499986514,0.478,3649.7,3649.5,0.25596854]
[1754499986659,0.478,3649.7,3649.6,0.25596854]
[1754499986989,7.06158435,3650.0,3649.6,0.25596854]
[1754499987189,7.06158435,3650.0,3649.7,0.25596854]
[1754499987492,0.478,3649.9,3649.8,0.25596854]
[1754499988082,0.1368,3650.0,3649.8,0.25596854]
[1754499988279,4.3218,3650.0,3649.9,0.25596854]
[1754499988478,4.7998,3650.0,3649.9,0.25596854]
[1754499988683,7.53952602,3650.0,3649.9,0.25596854]
[1754499988886,9.08872789,3650.0,3649.9,0.25596854]
[1754499989065,13.11041955,3650.0,3649.9,0.25596854]
[1754499989265,2.74021479,3649.4,3649.0,0.1368]
[1754499989583,2.74005111,3649.6,3649.1,0.25639282]
[1754499989584,4.185,3649.3,3649.1,0.25639282]
[1754499989790,4.185,3649.3,3649.2,0.25639282]
[1754499990694,4.663,3649.3,3649.2,0.25639282]
[1754499990889,5.1234,3649.3,3649.2,0.25639282]
[1754499991190,8.51279155,3649.3,3649.2,0.25639282]
[1754499992613,2.74039296,3649.2,3648.5,2.74084167]
[1754499992908,0.1368,3648.9,3648.6,0.25640108]
[1754499993113,4.3218,3648.9,3648.7,0.25640108]
[1754499993319,4.3218,3648.9,3648.8,0.25640108]
[1754499994108,4.8176,3648.9,3648.8,0.25640108]
[1754499994318,4.8176,3648.9,3648.8,0.25624934]
[1754499995111,4.8176,3648.9,3648.1,0.042]
[1754499995112,6.30784201,3648.9,3648.1,0.042]
[1754499995315,2.87766186,3648.5,3648.2,0.25617479]
[1754499995478,4.3218,3648.5,3648.3,0.25617479]
[1754499995680,7.52306886,3648.5,3648.4,0.25617479]
[1754499995994,8.96264643,3648.5,3648.4,0.25617479]
[1754499996316,8.96264643,3648.5,3648.1,0.042]
[1754499996317,2.74107779,3648.2,3648.1,0.042]
[1754499996527,6.92607779,3648.2,3648.1,0.29810089]
[1754499996819,7.88227779,3648.2,3648.1,0.29810089]
[1754499997112,8.01907779,3648.2,3648.1,0.042]
[1754499998629,8.02007779,3648.2,3648.1,0.042]
[1754499999124,4.8186,3648.2,3648.1,0.042]
[1754499999287,7.55967779,3648.2,3648.1,0.042]
[1754500000089,11.12007779,3648.2,3648.1,0.042]
[1754500000490,4.193,3648.2,3648.1,0.042]
[1754500000726,4.186,3648.2,3648.1,0.4786]
[1754500000894,4.186,3648.3,3648.1,3.71184436]
[1754500001220,4.185,3648.4,3648.3,2.74100265]
[1754500001425,3.1,3648.8,3648.5,2.74078249]
[1754500001601,4.186,3648.9,3648.4,0.02740927]
[1754500001804,0.1368,3649.4,3648.6,0.1368]
[1754500002010,4.3228,3649.8,3649.4,2.74012869]
[1754500002209,4.3228,3649.8,3649.5,3.17667981]
[1754500002419,0.1368,3649.8,3649.6,0.4366]
[1754500002726,0.1368,3649.8,3649.6,3.17656996]
[1754500002928,4.186,3650.1,3649.6,2.74000498]
[1754500003135,0.1368,3650.0,3649.5,0.1368]
[1754500003336,0.4958,3649.8,3649.5,0.1368]
[1754500003510,3.69617408,3649.7,3648.8,3.177186]
[1754500003708,4.16786574,3649.7,3649.3,0.1368]
[1754500003913,0.4958,3649.6,3649.3,0.1368]
[1754500004108,0.4958,3649.5,3649.3,0.1368]
[1754500004308,0.1368,3649.4,3648.8,0.1368]
[1754500004628,4.3228,3649.4,3648.9,2.99609757]
[1754500004826,4.3228,3649.4,3648.9,3.17714147]
[1754500005013,4.3228,3649.4,3648.9,0.4366]
[1754500005206,4.3228,3649.4,3648.9,1.0912809]
[1754500005432,4.187,3649.6,3649.1,2.87719538]
[1754500005643,6.92702945,3649.6,3649.1,0.5734]
[1754500005949,0.4958,3649.5,3649.1,0.1368]
[1754500006149,2.87703061,3649.4,3648.8,2.87741665]
[1754500006359,0.6326,3649.4,3648.8,2.87741665]
[1754500006649,3.3727852,3649.4,3648.8,0.1368]
[1754500006805,2.7402562,3649.3,3648.8,0.1368]
[1754500007002,3.3728225,3649.4,3648.8,0.1368]
[1754500007217,4.6838,3649.3,3648.8,0.1368]
[1754500007515,0.1368,3649.0,3648.3,0.1368]
[1754500007819,2.74083815,3648.6,3648.4,0.25568881]
[1754500008025,3.23665608,3648.5,3648.1,0.042]
[1754500008213,0.4958,3648.4,3648.2,0.2557277]
[1754500008413,0.4958,3648.4,3648.3,0.2557277]
[1754500008618,3.23672752,3648.4,3648.1,0.1788]
[1754500008830,0.4958,3648.4,3648.2,0.25572986]
[1754500009094,3.37325448,3648.8,3648.3,0.25572986]
[1754500009239,0.4958,3648.7,3648.4,0.25572986]
[1754500009440,0.4958,3648.7,3648.5,0.25572986]
[1754500009757,0.4958,3648.7,3648.1,2.91992283]
[1754500009758,3.23650812,3648.7,3648.1,2.91992283]
[1754500009938,3.23650812,3648.7,3648.2,0.25574884]
[1754500010121,3.2365228,3648.7,3648.3,0.25574884]
[1754500010318,2.7408524,3648.5,3648.4,0.25574884]
[1754500010920,3.2366524,3648.5,3648.4,0.25574884]
[1754500011752,3.3734524,3648.5,3648.4,0.25574884]
[1754500012054,4.47762897,3648.5,3648.4,0.25574884]
[1754500012224,2.74107779,3648.2,3648.1,0.042]
[1754500012539,2.74107779,3648.2,3648.1,0.29792589]
[1754500012540,2.87787779,3648.2,3648.1,0.29792589]
[1754500012857,2.87787779,3648.2,3648.1,0.042]
[1754500012858,4.84740832,3648.2,3648.1,0.042]
[1754500013412,3.37367779,3648.2,3648.1,0.042]
[1754500015347,3.83407779,3648.2,3648.1,0.042]
[1754500015744,7.38407779,3648.2,3648.1,0.042]
[1754500015960,7.85576945,3648.2,3648.1,0.042]
[1754500016124,7.38407779,3648.2,3648.1,0.042]
[1754500016329,9.46374789,3648.2,3648.1,0.042]
[1754500016849,12.56374789,3648.2,3648.1,0.042]
[1754500020311,12.10334789,3648.2,3648.1,0.042]
[1754500020511,12.56374789,3648.2,3648.1,0.042]
[1754500021657,2.74137836,3647.8,3647.2,3.2359057]
[1754500021978,0.1368,3647.4,3647.3,2.99795321]
[1754500022328,0.1368,3647.4,3647.3,3.49475321]
[1754500022528,5.74134883,3647.9,3647.3,3.49475321]
[1754500022727,0.1368,3647.5,3647.4,0.25621956]
[1754500023238,0.1368,3647.5,3647.4,0.75301956]
[1754500024032,0.1368,3647.5,3647.2,0.002]
[1754500024217,0.1368,3647.5,3647.3,0.25620462]
[1754500024423,0.1368,3647.5,3647.2,3.24058927]
[1754500024621,0.1368,3647.5,3647.3,3.49473244]
[1754500024848,0.1368,3647.5,3647.4,0.25618432]
[1754500026263,0.1368,3647.5,3647.2,0.002]
[1754500027161,0.1368,3647.5,3647.2,2.74382439]
[1754500027340,0.1368,3647.5,3647.3,0.4968]
[1754500028052,0.1368,3647.5,3647.4,0.4968]
[1754500028434,0.1368,3647.5,3647.3,2.74173035]
[1754500028640,0.1368,3647.5,3647.2,0.4244]
[1754500028641,4.187,3647.9,3647.4,0.9192]
[1754500028874,0.1368,3647.7,3647.4,0.4224]
[1754500029026,0.1368,3647.7,3647.5,0.4968]
[1754500029334,0.1368,3647.7,3647.4,2.7416563]
[1754500029540,0.1368,3647.7,3647.4,0.4968]
[1754500030061,0.1368,3647.7,3647.5,3.23837628]
[1754500030247,7.187,3648.0,3647.6,0.4968]
[1754500030449,7.18,3648.6,3647.7,0.9192]
[1754500030759,0.1368,3648.3,3647.8,1.42207912]
[1754500030965,0.1368,3648.3,3647.8,3.3749329]
[1754500031163,0.1368,3648.3,3647.9,2.7412915]
[1754500031667,0.1368,3648.3,3647.8,3.37494252]
[1754500032166,0.1368,3648.3,3648.0,2.74122228]
[1754500032962,0.1368,3648.3,3648.1,3.23794354]
[1754500033160,0.1368,3648.3,3648.0,2.74120011]
[1754500033563,0.1368,3648.3,3648.0,3.23800011]
[1754500033862,0.1368,3648.3,3647.9,2.74127741]
[1754500034086,7.18,3648.2,3648.0,0.25612146]
[1754500034263,7.18,3648.2,3647.8,0.1368]
[1754500034559,0.9467,3648.1,3647.9,0.25621595]
[1754500034780,0.1368,3648.0,3647.6,2.74152317]
[1754500034933,0.1368,3648.0,3647.7,0.25621874]
[1754500035244,0.1368,3648.0,3647.8,0.25622471]
[1754500035451,0.6264,3648.0,3647.9,0.25622471]
[1754500036959,1.0835,3648.0,3647.9,0.25622471]
[1754500037270,7.18,3648.2,3647.9,0.25622471]
[1754500037468,0.1368,3648.1,3648.0,0.25622471]
[1754500037671,0.1368,3648.1,3647.7,2.7413859]
[1754500037842,0.1368,3648.1,3647.8,0.256508]
[1754500038037,0.1368,3648.1,3647.9,0.256508]
[1754500038350,0.1368,3648.1,3647.8,2.74132114]
[1754500038551,0.1368,3648.1,3647.9,0.2565591]
[1754500038865,0.1368,3648.1,3647.8,2.74133782]
[1754500039145,0.1368,3648.1,3647.9,0.25655917]
[1754500039302,0.1368,3648.1,3648.0,0.25655917]
[1754500039981,11.00465292,3648.1,3648.0,0.25655917]
[1754500040177,15.89792041,3648.1,3648.0,0.25655917]
[1754500041487,2.74135683,3647.9,3647.3,6.93075215]
[1754500041804,2.74160383,3647.5,3647.4,0.25683669]
[1754500042103,7.06540383,3647.5,3647.4,0.25683669]
[1754500042265,12.23462873,3647.5,3647.4,0.25683669]
[1754500042462,12.23462873,3647.5,3647.2,0.002]
[1754500042463,6.29175417,3647.3,3647.2,0.002]
[1754500042661,6.29182934,3647.2,3647.1,1e-08]
[1754500042891,7.70288767,3647.2,3647.1,1e-08]
[1754500043090,9.12369577,3647.2,3647.1,1e-08]
[1754500043297,12.22369577,3647.2,3647.1,1e-08]
[1754500043900,16.41069577,3647.2,3647.1,1e-08]
[1754500044872,16.8750541,3647.2,3647.1,1e-08]
[1754500048105,16.41069577,3647.2,3647.1,1e-08]
[1754500049509,10.72699577,3647.2,3647.1,1e-08]
[1754500049807,10.02982934,3647.2,3647.1,1e-08]
[1754500050007,8.84182934,3647.2,3647.1,1e-08]
[1754500050174,13.02982934,3647.2,3647.1,1e-08]
[1754500050371,8.84182934,3647.2,3647.1,1e-08]
[1754500050571,13.03082934,3647.2,3647.1,1e-08]
[1754500051172,6.1,3647.2,3647.1,1e-08]
[1754500051369,7.288,3647.2,3647.1,0.45910001]
[1754500052174,7.288,3647.2,3647.1,1e-08]
[1754500052175,10.02982934,3647.2,3647.1,1e-08]
[1754500052474,5.84182934,3647.2,3647.1,1e-08]
[1754500052809,10.16662934,3647.2,3647.1,1e-08]
[1754500053177,11.11372934,3647.2,3647.1,1e-08]
[1754500053378,10.16662934,3647.2,3647.1,1e-08]
[1754500054711,18.29372934,3647.2,3647.1,1e-08]
[1754500055009,20.4437074,3647.2,3647.1,1e-08]
[1754500055787,20.9937074,3647.2,3647.1,1e-08]
[1754500056980,20.0466074,3647.2,3647.1,1e-08]
[1754500057180,17.34662934,3647.2,3647.1,1e-08]
[1754500057893,18.29372934,3647.2,3647.1,1e-08]
[1754500059151,17.34662934,3647.2,3647.1,1e-08]
[1754500059725,2.74142215,3649.1,3648.3,2.7409349]
[1754500059883,0.1368,3648.7,3648.4,2.72683936]
[1754500060222,0.1368,3648.7,3648.2,0.1368]
[1754500060223,4.3758,3648.7,3648.2,0.1368]
[1754500060390,0.4779,3648.6,3647.8,0.4224]
[1754500060586,0.4779,3648.6,3647.9,0.25570183]
[1754500060587,0.1368,3648.2,3647.9,0.25570183]
[1754500060922,0.1368,3648.2,3648.0,0.25570266]
[1754500061120,0.1368,3648.2,3647.8,0.4591]
[1754500061297,0.1368,3648.2,3647.9,0.25571232]
[1754500061508,0.1368,3647.9,3647.5,0.8815]
[1754500061696,0.1368,3647.9,3647.6,1.09078967]
[1754500061890,0.1368,3647.9,3647.7,0.2556924]
[1754500062090,0.1368,3647.9,3647.8,0.2556924]
[1754500063905,0.1368,3647.9,3647.6,0.37599727]
[1754500064236,0.1368,3647.7,3647.3,0.4591]
[1754500064390,0.1368,3647.7,3647.4,0.71481443]
[1754500064591,0.1368,3647.7,3647.5,0.25571443]
[1754500064903,0.1368,3647.7,3647.6,0.25571443]
[1754500065126,0.4779,3648.0,3647.6,0.25571443]
[1754500065311,6.97717763,3648.1,3647.2,2.74182779]
[1754500065312,0.1368,3647.7,3647.2,2.74182779]
[1754500065519,0.1368,3647.5,3647.3,0.25574612]
[1754500065720,0.4779,3647.9,3647.4,0.25574612]
[1754500065944,0.1368,3647.3,3647.1,1e-08]
[1754500066146,0.1368,3647.3,3647.2,0.2557557]
[1754500066448,0.1368,3647.3,3647.2,0.7148557]
[1754500067447,0.1368,3647.3,3647.1,1e-08]
[1754500068452,0.9471,3647.2,3647.1,1e-08]
[1754500068639,3.68892934,3647.2,3647.1,1e-08]
[1754500068843,4.34567601,3647.2,3647.1,1e-08]
[1754500070820,7.34567601,3647.2,3647.1,1e-08]
[1754500073744,14.52567601,3647.2,3647.1,1e-08]
[1754500074662,13.57857601,3647.2,3647.1,1e-08]
[1754500075163,12.92182934,3647.2,3647.1,1e-08]
[1754500075371,13.86892934,3647.2,3647.1,1e-08]
[1754500075733,14.41892934,3647.2,3647.1,1e-08]
[1754500076065,7.23892934,3647.2,3647.1,1e-08]
[1754500081142,7.70349134,3647.2,3647.1,1e-08]
[1754500081338,10.34272593,3647.2,3647.1,1e-08]
[1754500082335,3.2919797,3647.0,3646.9,1e-08]
[1754500082666,10.6547797,3647.0,3646.9,1e-08]
[1754500082971,11.5804797,3647.0,3646.9,1e-08]
[1754500083383,3.29258131,3646.2,3645.2,0.4619]
[1754500083674,10.98463944,3646.2,3645.2,0.4619]
[1754500083879,11.91033944,3646.2,3645.2,0.4619]
[1754500084036,12.0462409,3646.2,3645.2,0.4619]
[1754500085366,11.9094409,3646.2,3645.2,0.4619]
[1754500086477,5.74258131,3646.2,3646.1,0.5019]
[1754500086773,6.96858131,3646.2,3646.1,0.9243]
[1754500087468,6.96858131,3646.2,3646.1,0.04]
[1754500087855,7.43758131,3646.2,3646.1,0.04]
[1754500088067,9.47581326,3646.2,3646.1,0.04]
[1754500088272,9.01911326,3646.2,3646.1,0.04]
[1754500088467,8.55011326,3646.2,3646.1,0.04]
[1754500090564,11.65011326,3646.2,3646.1,0.04]
[1754500093060,12.57581326,3646.2,3646.1,0.04]
[1754500093382,15.57581326,3646.2,3646.1,0.04]
[1754500094071,16.04037526,3646.2,3646.1,0.04]
[1754500095466,23.35717526,3646.2,3646.1,0.04]
[1754500096278,2.74333369,3645.2,3645.1,0.539]
[1754500096482,7.10113369,3645.2,3645.1,0.539]
[1754500096691,7.10113369,3645.2,3645.1,1.4233]
[1754500096848,10.20113369,3645.2,3645.1,1.4233]
[1754500097044,10.20113369,3645.2,3645.1,1.0009]
[1754500097251,11.49557165,3645.2,3645.1,0.539]
[1754500097451,11.49557165,3645.2,3643.5,0.4224]
[1754500097452,5.74408649,3644.2,3643.5,0.4224]
[1754500097661,10.10368649,3644.2,3644.1,0.29627182]
[1754500098082,4.3606,3644.2,3644.1,0.71869065]
[1754500098383,0.1368,3644.4,3644.1,1.18059065]
[1754500098557,0.1368,3644.6,3644.3,2.74401119]
[1754500098757,3.1,3645.2,3644.4,1.45838083]
[1754500098758,0.1368,3644.9,3644.4,1.45838083]
[1754500098969,4.3608,3644.9,3644.8,2.74363476]
[1754500099220,1.03153195,3646.2,3644.8,0.8843]
[1754500099388,0.1368,3645.4,3644.9,2.74348628]
[1754500099549,4.3618,3645.4,3644.8,0.1368]
[1754500099749,7.10499551,3645.4,3645.0,0.8843]
[1754500100000,7.10499551,3645.4,3645.1,0.4619]
[1754500100001,4.3618,3645.4,3645.1,0.4619]
[1754500100502,0.1368,3645.2,3645.1,0.4619]
[1754500100870,4.3638,3645.2,3645.1,0.4619]
[1754500101466,0.1368,3645.2,3645.1,0.4619]